[Event "Early-Titled-Tuesday-Blitz-May-28-2024"]
[Site "Chess.com"]
[Date "2024.05.28"]
[Round "9"]
[White "kleinebeer98"]
[Black "BogdanDeac"]
[Result "1-0"]
[WhiteElo "2974"]
[BlackElo "3113"]
[TimeControl "180+1"]
[EndTime "9:45:30 PDT"]
[Termination "kleinebeer98 won by resignation"]

1. e4 {[%clk 0:03:00.9]} 1... c6 {[%clk 0:02:58]} 2. d4 {[%clk 0:03:00.6]} 2...
d5 {[%clk 0:02:58.2]} 3. f3 {[%clk 0:03:01.5]} 3... Qb6 {[%clk 0:02:50.5]} 4.
Nc3 {[%clk 0:03:01.2]} 4... dxe4 {[%clk 0:02:48.2]} 5. Bc4 {[%clk 0:03:01]} 5...
e5 {[%clk 0:02:33.2]} 6. dxe5 {[%clk 0:02:44.8]} 6... Bc5 {[%clk 0:02:32]} 7.
Nxe4 {[%clk 0:02:39.1]} 7... Bxg1 {[%clk 0:01:55]} 8. Qe2 {[%clk 0:02:19.6]}
8... Be6 {[%clk 0:01:29.5]} 9. Bxe6 {[%clk 0:02:10.2]} 9... fxe6 {[%clk
0:01:26.9]} 10. Qc4 {[%clk 0:01:56.2]} 10... Ne7 {[%clk 0:00:05.9]} 11. Qxe6
{[%clk 0:01:41.1]} 11... Kf8 {[%clk 0:00:05.3]} 12. Bh6 {[%clk 0:01:12.2]} 12...
gxh6 {[%clk 0:00:02.8]} 13. Qf6+ {[%clk 0:01:11.5]} 13... Ke8 {[%clk 0:00:02.2]}
14. Qxh8+ {[%clk 0:01:11.7]} 14... Kd7 {[%clk 0:00:02]} 15. O-O-O+ {[%clk
0:01:11.3]} 15... Nd5 {[%clk 0:00:02.3]} 16. Rhxg1 {[%clk 0:01:06.5]} 16... Qe3+
{[%clk 0:00:01.6]} 17. Kb1 {[%clk 0:01:06.3]} 17... Kc7 {[%clk 0:00:02.4]} 18.
Nd6 {[%clk 0:01:01]} 1-0

[Event "Early-Titled-Tuesday-Blitz-May-28-2024"]
[Site "Chess.com"]
[Date "2024.05.28"]
[Round "9"]
[White "chessamical"]
[Black "Cheer_Down"]
[Result "0-1"]
[WhiteElo "2279"]
[BlackElo "2464"]
[TimeControl "180+1"]
[EndTime "9:45:34 PDT"]
[Termination "Cheer_Down won by resignation"]

1. Nf3 {[%clk 0:03:00.9]} 1... d5 {[%clk 0:02:58.3]} 2. c4 {[%clk 0:03:00.7]}
2... e6 {[%clk 0:02:57.2]} 3. e3 {[%clk 0:02:59]} 3... Nf6 {[%clk 0:02:55.2]} 4.
b3 {[%clk 0:02:57.3]} 4... c5 {[%clk 0:02:44.3]} 5. cxd5 {[%clk 0:02:55.5]} 5...
exd5 {[%clk 0:02:44.5]} 6. d4 {[%clk 0:02:55.1]} 6... cxd4 {[%clk 0:02:43.7]} 7.
Nxd4 {[%clk 0:02:52.9]} 7... Bb4+ {[%clk 0:02:43.2]} 8. Bd2 {[%clk 0:02:46.5]}
8... Bd6 {[%clk 0:02:42.9]} 9. Nc3 {[%clk 0:02:32.2]} 9... O-O {[%clk
0:02:41.3]} 10. Be2 {[%clk 0:02:19.8]} 10... Nc6 {[%clk 0:02:41.5]} 11. Nxc6
{[%clk 0:02:05.1]} 11... bxc6 {[%clk 0:02:41.4]} 12. O-O {[%clk 0:02:03]} 12...
Re8 {[%clk 0:02:38.6]} 13. Rc1 {[%clk 0:02:00.3]} 13... h5 {[%clk 0:02:35.4]}
14. Na4 {[%clk 0:01:28.5]} 14... Re6 {[%clk 0:02:30]} 15. Nc5 {[%clk 0:01:23.3]}
15... Re5 {[%clk 0:02:21]} 16. Nd3 {[%clk 0:00:57.6]} 16... Re6 {[%clk
0:02:21.1]} 17. Nc5 {[%clk 0:00:48.9]} 17... Re7 {[%clk 0:02:19]} 18. b4 {[%clk
0:00:47.4]} 18... Bg4 {[%clk 0:02:13.7]} 19. Bc3 {[%clk 0:00:40.8]} 19... Bxc5
{[%clk 0:02:10.7]} 20. Bxf6 {[%clk 0:00:39.4]} 20... Bxb4 {[%clk 0:02:07.8]} 21.
Bxe7 {[%clk 0:00:38.7]} 21... Qxe7 {[%clk 0:02:08.1]} 22. Bxg4 {[%clk
0:00:38.6]} 22... hxg4 {[%clk 0:02:07.7]} 23. Qxg4 {[%clk 0:00:39.2]} 23... c5
{[%clk 0:02:03.2]} 24. Rfd1 {[%clk 0:00:38.3]} 24... Rd8 {[%clk 0:02:02.6]} 25.
Qf5 {[%clk 0:00:29.5]} 25... g6 {[%clk 0:01:59.8]} 26. Qf3 {[%clk 0:00:24.5]}
26... d4 {[%clk 0:01:57.5]} 27. exd4 {[%clk 0:00:21.4]} 27... cxd4 {[%clk
0:01:57.7]} 28. Rd3 {[%clk 0:00:18.4]} 28... Bc3 {[%clk 0:01:51.5]} 29. g3
{[%clk 0:00:18.4]} 29... Rb8 {[%clk 0:01:44.3]} 30. Qd5 {[%clk 0:00:13]} 30...
Rb2 {[%clk 0:01:42.5]} 31. Rcxc3 {[%clk 0:00:08.8]} 31... Qe1+ {[%clk
0:01:40.3]} 32. Kg2 {[%clk 0:00:07.7]} 32... Qxf2+ {[%clk 0:01:40.2]} 33. Kh3
{[%clk 0:00:08.6]} 33... Qxh2+ {[%clk 0:01:39.9]} 34. Kg4 {[%clk 0:00:08.5]}
34... Qh5+ {[%clk 0:01:39.5]} 35. Kf4 {[%clk 0:00:08.3]} 35... Qxd5 {[%clk
0:01:35.1]} 0-1

[Event "Early-Titled-Tuesday-Blitz-May-28-2024"]
[Site "Chess.com"]
[Date "2024.05.28"]
[Round "9"]
[White "MathiasWomacka"]
[Black "ThetNaung291"]
[Result "1-0"]
[WhiteElo "2510"]
[BlackElo "2345"]
[TimeControl "180+1"]
[EndTime "9:45:41 PDT"]
[Termination "MathiasWomacka won by resignation"]

1. e4 {[%clk 0:03:00.9]} 1... e6 {[%clk 0:02:58.9]} 2. d4 {[%clk 0:02:59.5]}
2... d5 {[%clk 0:02:58.7]} 3. Nd2 {[%clk 0:02:59.1]} 3... c5 {[%clk 0:02:57.4]}
4. exd5 {[%clk 0:02:58.8]} 4... exd5 {[%clk 0:02:54.8]} 5. Ngf3 {[%clk
0:02:58.9]} 5... Nf6 {[%clk 0:02:52.7]} 6. Bb5+ {[%clk 0:02:57.9]} 6... Bd7
{[%clk 0:02:52.4]} 7. Bxd7+ {[%clk 0:02:57.2]} 7... Nbxd7 {[%clk 0:02:51]} 8.
O-O {[%clk 0:02:57.7]} 8... Be7 {[%clk 0:02:50.8]} 9. Re1 {[%clk 0:02:57.7]}
9... O-O {[%clk 0:02:50.5]} 10. dxc5 {[%clk 0:02:57.7]} 10... Bxc5 {[%clk
0:02:48.8]} 11. Nb3 {[%clk 0:02:56.5]} 11... Bb6 {[%clk 0:02:45.7]} 12. Be3
{[%clk 0:02:53.7]} 12... Re8 {[%clk 0:02:40.1]} 13. Qd3 {[%clk 0:02:40.7]} 13...
Rc8 {[%clk 0:02:35.2]} 14. c3 {[%clk 0:02:30.7]} 14... Nc5 {[%clk 0:02:28]} 15.
Bxc5 {[%clk 0:02:25.6]} 15... Bxc5 {[%clk 0:02:27.9]} 16. Rxe8+ {[%clk 0:02:14]}
16... Qxe8 {[%clk 0:02:26.9]} 17. Re1 {[%clk 0:02:09.8]} 17... Qa4 {[%clk
0:02:19.8]} 18. Nxc5 {[%clk 0:01:59.2]} 18... Rxc5 {[%clk 0:02:19.4]} 19. a3
{[%clk 0:01:44]} 19... Rc7 {[%clk 0:02:08.2]} 20. h3 {[%clk 0:01:42.2]} 20... h6
{[%clk 0:02:07.5]} 21. Nd4 {[%clk 0:01:36.3]} 21... Qc4 {[%clk 0:01:51.4]} 22.
Qg3 {[%clk 0:01:35.4]} 22... Ne4 {[%clk 0:01:45.5]} 23. Qe5 {[%clk 0:01:26.3]}
23... f6 {[%clk 0:01:19.9]} 24. Qe6+ {[%clk 0:01:23.4]} 24... Kh7 {[%clk
0:01:18.2]} 25. Nf5 {[%clk 0:01:11.8]} 25... Qd3 {[%clk 0:00:59.7]} 26. Ne3
{[%clk 0:00:59.6]} 26... Qd2 {[%clk 0:00:53.4]} 27. Rf1 {[%clk 0:00:55.9]} 27...
Qxb2 {[%clk 0:00:50.2]} 28. Nxd5 {[%clk 0:00:54.2]} 28... Rc4 {[%clk 0:00:45.1]}
29. Ne7 {[%clk 0:00:51.2]} 1-0

[Event "Early-Titled-Tuesday-Blitz-May-28-2024"]
[Site "Chess.com"]
[Date "2024.05.28"]
[Round "9"]
[White "Narek_Ghimoyan"]
[Black "ozates"]
[Result "1-0"]
[WhiteElo "2463"]
[BlackElo "2619"]
[TimeControl "180+1"]
[EndTime "9:45:42 PDT"]
[Termination "Narek_Ghimoyan won by resignation"]

1. e4 {[%clk 0:03:00.9]} 1... c5 {[%clk 0:02:57.2]} 2. Nc3 {[%clk 0:03:00.1]}
2... Nc6 {[%clk 0:02:57.3]} 3. Bb5 {[%clk 0:02:59.6]} 3... Nd4 {[%clk 0:02:56]}
4. Bc4 {[%clk 0:02:59.6]} 4... a6 {[%clk 0:02:54.8]} 5. a4 {[%clk 0:02:58.8]}
5... g6 {[%clk 0:02:50.8]} 6. Nf3 {[%clk 0:02:58.4]} 6... Bg7 {[%clk 0:02:51.1]}
7. Nxd4 {[%clk 0:02:58.7]} 7... cxd4 {[%clk 0:02:52]} 8. Qf3 {[%clk 0:02:59.3]}
8... e6 {[%clk 0:02:36.4]} 9. Ne2 {[%clk 0:02:55.3]} 9... Ne7 {[%clk 0:02:36.4]}
10. d3 {[%clk 0:02:55.7]} 10... d5 {[%clk 0:02:35.7]} 11. exd5 {[%clk
0:02:52.9]} 11... exd5 {[%clk 0:02:36.3]} 12. Bb3 {[%clk 0:02:52.5]} 12... h6
{[%clk 0:02:35]} 13. O-O {[%clk 0:02:52.4]} 13... O-O {[%clk 0:02:35]} 14. Nf4
{[%clk 0:02:49.6]} 14... Be6 {[%clk 0:02:31.2]} 15. Re1 {[%clk 0:02:48]} 15...
Qd7 {[%clk 0:02:31.2]} 16. Qe2 {[%clk 0:02:46.5]} 16... Nc6 {[%clk 0:01:57.3]}
17. Nxe6 {[%clk 0:02:27]} 17... Rfe8 {[%clk 0:01:56.7]} 18. Bxh6 {[%clk
0:02:11]} 18... Rxe6 {[%clk 0:01:31.5]} 19. Qd2 {[%clk 0:02:09.5]} 19... Bxh6
{[%clk 0:01:19]} 20. Qxh6 {[%clk 0:02:10.4]} 20... Rae8 {[%clk 0:01:18.7]} 21.
Qd2 {[%clk 0:02:02.7]} 21... Ne5 {[%clk 0:01:10.9]} 22. Kf1 {[%clk 0:01:43.4]}
22... Kg7 {[%clk 0:00:44.3]} 23. Qf4 {[%clk 0:01:38.9]} 23... Rf6 {[%clk
0:00:39.1]} 24. Qxd4 {[%clk 0:01:27.1]} 24... Qf5 {[%clk 0:00:38.8]} 25. Bxd5
{[%clk 0:01:15.5]} 25... Rh8 {[%clk 0:00:17.8]} 26. Rxe5 {[%clk 0:01:02]} 26...
Qd7 {[%clk 0:00:15.9]} 27. Kg1 {[%clk 0:00:58]} 1-0

[Event "Early-Titled-Tuesday-Blitz-May-28-2024"]
[Site "Chess.com"]
[Date "2024.05.28"]
[Round "9"]
[White "xasid81"]
[Black "Louis-Paulsen-Fan"]
[Result "1-0"]
[WhiteElo "2594"]
[BlackElo "2331"]
[TimeControl "180+1"]
[EndTime "9:45:44 PDT"]
[Termination "xasid81 won by checkmate"]

1. a3 {[%clk 0:03:00.9]} 1... d5 {[%clk 0:02:58.8]} 2. b4 {[%clk 0:02:59.6]}
2... e5 {[%clk 0:02:55.4]} 3. Bb2 {[%clk 0:02:59.3]} 3... Bd6 {[%clk 0:02:55.6]}
4. e3 {[%clk 0:02:59.8]} 4... Nf6 {[%clk 0:02:53.2]} 5. c4 {[%clk 0:03:00.2]}
5... c6 {[%clk 0:02:52.4]} 6. cxd5 {[%clk 0:02:59.2]} 6... cxd5 {[%clk
0:02:52.6]} 7. Nf3 {[%clk 0:02:59.9]} 7... Qe7 {[%clk 0:02:49.7]} 8. Bb5+ {[%clk
0:02:59]} 8... Nc6 {[%clk 0:02:44.6]} 9. d4 {[%clk 0:02:53.3]} 9... e4 {[%clk
0:02:41.3]} 10. Ne5 {[%clk 0:02:47.1]} 10... Bd7 {[%clk 0:02:39.6]} 11. Nxd7
{[%clk 0:02:45.1]} 11... Qxd7 {[%clk 0:02:35.4]} 12. Nc3 {[%clk 0:02:44.6]}
12... O-O {[%clk 0:02:33.5]} 13. O-O {[%clk 0:02:43.2]} 13... Rac8 {[%clk
0:02:28]} 14. Rc1 {[%clk 0:02:42.1]} 14... Bb8 {[%clk 0:02:22.4]} 15. f3 {[%clk
0:02:38.9]} 15... Qd6 {[%clk 0:02:20.6]} 16. g3 {[%clk 0:02:36.3]} 16... exf3
{[%clk 0:02:09.2]} 17. Qxf3 {[%clk 0:02:34.4]} 17... Rfe8 {[%clk 0:02:09.1]} 18.
Rce1 {[%clk 0:02:27.3]} 18... Re7 {[%clk 0:01:52]} 19. Bd3 {[%clk 0:02:20.1]}
19... Rce8 {[%clk 0:01:48.3]} 20. Nb5 {[%clk 0:01:57.7]} 20... Qd8 {[%clk
0:01:42.5]} 21. Nc3 {[%clk 0:01:57.6]} 21... Nxd4 {[%clk 0:01:34.8]} 22. Qd1
{[%clk 0:01:46]} 22... Ne6 {[%clk 0:01:30.6]} 23. Rxf6 {[%clk 0:01:42.8]} 23...
gxf6 {[%clk 0:01:30.4]} 24. Nxd5 {[%clk 0:01:39.5]} 24... Be5 {[%clk 0:01:24.5]}
25. Bxe5 {[%clk 0:01:18.4]} 25... fxe5 {[%clk 0:01:20.8]} 26. Qh5 {[%clk
0:00:55.4]} 26... Nf8 {[%clk 0:01:19.3]} 27. Nf6+ {[%clk 0:00:53.7]} 27... Kg7
{[%clk 0:01:12.7]} 28. Qg5+ {[%clk 0:00:46.3]} 28... Ng6 {[%clk 0:01:11.4]} 29.
Nh5+ {[%clk 0:00:44.4]} 29... Kg8 {[%clk 0:01:03.1]} 30. Qf6 {[%clk 0:00:38.8]}
30... Qxd3 {[%clk 0:00:41.3]} 31. Qg7# {[%clk 0:00:38.3]} 1-0

[Event "Early-Titled-Tuesday-Blitz-May-28-2024"]
[Site "Chess.com"]
[Date "2024.05.28"]
[Round "9"]
[White "Gryffindorac8"]
[Black "dmosesov"]
[Result "0-1"]
[WhiteElo "2476"]
[BlackElo "2661"]
[TimeControl "180+1"]
[EndTime "9:45:47 PDT"]
[Termination "dmosesov won by resignation"]

1. d4 {[%clk 0:03:00.9]} 1... Nf6 {[%clk 0:02:57.8]} 2. c4 {[%clk 0:03:01]} 2...
c5 {[%clk 0:02:55.9]} 3. d5 {[%clk 0:03:00.3]} 3... e6 {[%clk 0:02:56.3]} 4. Nc3
{[%clk 0:02:59.8]} 4... exd5 {[%clk 0:02:57]} 5. cxd5 {[%clk 0:03:00.3]} 5... d6
{[%clk 0:02:57.5]} 6. Nf3 {[%clk 0:02:57.2]} 6... g6 {[%clk 0:02:57.8]} 7. h3
{[%clk 0:02:57.2]} 7... Bg7 {[%clk 0:02:58.4]} 8. e4 {[%clk 0:02:57]} 8... O-O
{[%clk 0:02:59]} 9. Be3 {[%clk 0:02:57]} 9... b6 {[%clk 0:02:47.6]} 10. Be2
{[%clk 0:02:52.7]} 10... Ba6 {[%clk 0:02:43.2]} 11. Bxa6 {[%clk 0:02:43.5]}
11... Nxa6 {[%clk 0:02:44.1]} 12. O-O {[%clk 0:02:43.6]} 12... Re8 {[%clk
0:02:43]} 13. Nd2 {[%clk 0:02:42.8]} 13... Nc7 {[%clk 0:02:38.5]} 14. a4 {[%clk
0:02:38.1]} 14... a6 {[%clk 0:02:37.7]} 15. Qe2 {[%clk 0:02:09.7]} 15... Rb8
{[%clk 0:02:30.4]} 16. Rab1 {[%clk 0:01:49.8]} 16... Nd7 {[%clk 0:02:12.7]} 17.
Nc4 {[%clk 0:01:42.5]} 17... Ne5 {[%clk 0:02:11.4]} 18. Nxe5 {[%clk 0:01:33.8]}
18... Bxe5 {[%clk 0:02:12.3]} 19. Qd3 {[%clk 0:01:23.4]} 19... b5 {[%clk
0:02:10.1]} 20. axb5 {[%clk 0:01:19.7]} 20... Nxb5 {[%clk 0:01:58]} 21. Nxb5
{[%clk 0:00:54.8]} 21... Rxb5 {[%clk 0:01:58.9]} 22. b3 {[%clk 0:00:50.9]} 22...
Qa5 {[%clk 0:01:53.6]} 23. Bd2 {[%clk 0:00:46.6]} 23... Qa2 {[%clk 0:01:38.5]}
24. f4 {[%clk 0:00:30.1]} 24... Bd4+ {[%clk 0:01:28.7]} 25. Be3 {[%clk
0:00:30.2]} 25... Rb4 {[%clk 0:01:20.8]} 26. Rfe1 {[%clk 0:00:21.1]} 26... Bxe3+
{[%clk 0:00:57.5]} 27. Rxe3 {[%clk 0:00:22]} 27... Rd4 {[%clk 0:00:57.7]} 28.
Qc3 {[%clk 0:00:14.6]} 28... Qxb1+ {[%clk 0:00:56.9]} 0-1

[Event "Early-Titled-Tuesday-Blitz-May-28-2024"]
[Site "Chess.com"]
[Date "2024.05.28"]
[Round "9"]
[White "Irina_Mikhaylova"]
[Black "Likvidator228"]
[Result "0-1"]
[WhiteElo "2350"]
[BlackElo "2523"]
[TimeControl "180+1"]
[EndTime "9:45:54 PDT"]
[Termination "Likvidator228 won by resignation"]

1. d4 {[%clk 0:03:00.2]} 1... f5 {[%clk 0:02:58.7]} 2. Nf3 {[%clk 0:02:58.7]}
2... Nf6 {[%clk 0:02:58.8]} 3. g3 {[%clk 0:02:59.1]} 3... g6 {[%clk 0:02:59.1]}
4. Bg2 {[%clk 0:02:59.6]} 4... Bg7 {[%clk 0:02:59.8]} 5. O-O {[%clk 0:03:00.3]}
5... O-O {[%clk 0:03:00.5]} 6. b3 {[%clk 0:03:00.9]} 6... d6 {[%clk 0:02:58.7]}
7. Bb2 {[%clk 0:03:01.3]} 7... Ng4 {[%clk 0:02:58.5]} 8. Re1 {[%clk 0:02:59.5]}
8... Nc6 {[%clk 0:02:57.9]} 9. Nbd2 {[%clk 0:02:56.8]} 9... e5 {[%clk 0:02:55]}
10. dxe5 {[%clk 0:02:57]} 10... dxe5 {[%clk 0:02:54.5]} 11. e4 {[%clk
0:02:55.3]} 11... f4 {[%clk 0:02:51.4]} 12. Nc4 {[%clk 0:02:54.3]} 12... Nd4
{[%clk 0:02:32.2]} 13. h3 {[%clk 0:02:19.3]} 13... Nxf3+ {[%clk 0:02:28]} 14.
Bxf3 {[%clk 0:02:15.4]} 14... Qxd1 {[%clk 0:02:25.4]} 15. Raxd1 {[%clk
0:02:14.5]} 15... Nh6 {[%clk 0:02:25.6]} 16. Kg2 {[%clk 0:01:34.3]} 16... Nf7
{[%clk 0:02:10.6]} 17. Bg4 {[%clk 0:01:27.4]} 17... Bxg4 {[%clk 0:02:00.2]} 18.
hxg4 {[%clk 0:01:28.3]} 18... fxg3 {[%clk 0:02:00.5]} 19. Kxg3 {[%clk
0:01:25.5]} 19... Rad8 {[%clk 0:01:59.4]} 20. Ne3 {[%clk 0:01:18]} 20... c6
{[%clk 0:01:57.5]} 21. Rxd8 {[%clk 0:01:14.8]} 21... Rxd8 {[%clk 0:01:57]} 22.
Rd1 {[%clk 0:01:15.7]} 22... Rxd1 {[%clk 0:01:53.4]} 23. Nxd1 {[%clk 0:01:15.7]}
23... Bh6 {[%clk 0:01:54.1]} 24. f3 {[%clk 0:01:08.3]} 24... Bf4+ {[%clk
0:01:54.1]} 25. Kf2 {[%clk 0:01:08.2]} 25... h5 {[%clk 0:01:54.4]} 26. gxh5
{[%clk 0:01:01]} 26... gxh5 {[%clk 0:01:54.5]} 27. Nc3 {[%clk 0:01:01.1]} 27...
Kh7 {[%clk 0:01:44.3]} 28. Ne2 {[%clk 0:01:01.3]} 28... Bg5 {[%clk 0:01:42.3]}
29. Bc1 {[%clk 0:00:47.1]} 29... Bxc1 {[%clk 0:01:41.7]} 30. Nxc1 {[%clk
0:00:48]} 30... Kg6 {[%clk 0:01:42.2]} 31. Nd3 {[%clk 0:00:47.5]} 31... Kf6
{[%clk 0:01:37.4]} 32. Kg3 {[%clk 0:00:41.8]} 32... Kg5 {[%clk 0:01:33.4]} 33.
Nc5 {[%clk 0:00:37.4]} 33... h4+ {[%clk 0:01:33.5]} 34. Kf2 {[%clk 0:00:37.8]}
34... b6 {[%clk 0:01:29]} 35. Ne6+ {[%clk 0:00:38.2]} 35... Kf6 {[%clk
0:01:27.1]} 36. Nf8 {[%clk 0:00:32.7]} 36... Ng5 {[%clk 0:01:19.6]} 37. Nd7+
{[%clk 0:00:31.8]} 37... Ke6 {[%clk 0:01:17.7]} 38. Nb8 {[%clk 0:00:32]} 38...
Kd6 {[%clk 0:01:16.9]} 39. c4 {[%clk 0:00:30.1]} 39... a5 {[%clk 0:01:14.8]} 40.
a3 {[%clk 0:00:28.7]} 40... Kc7 {[%clk 0:01:14.6]} 41. Na6+ {[%clk 0:00:27.2]}
41... Kb7 {[%clk 0:01:15.1]} 0-1

[Event "Early-Titled-Tuesday-Blitz-May-28-2024"]
[Site "Chess.com"]
[Date "2024.05.28"]
[Round "9"]
[White "briesmas"]
[Black "luachess1"]
[Result "0-1"]
[WhiteElo "2372"]
[BlackElo "1810"]
[TimeControl "180+1"]
[EndTime "9:46:00 PDT"]
[Termination "luachess1 won on time"]

1. e4 {[%clk 0:02:45.8]} 1... c5 {[%clk 0:02:58.8]} 2. Nf3 {[%clk 0:02:45.5]}
2... Nc6 {[%clk 0:02:57.6]} 3. d4 {[%clk 0:02:45.3]} 3... cxd4 {[%clk
0:02:57.7]} 4. Nxd4 {[%clk 0:02:46.2]} 4... g6 {[%clk 0:02:56.2]} 5. Nc3 {[%clk
0:02:45.8]} 5... Bg7 {[%clk 0:02:56.4]} 6. Be3 {[%clk 0:02:45.8]} 6... d6 {[%clk
0:02:49.2]} 7. f3 {[%clk 0:02:26.9]} 7... Nf6 {[%clk 0:02:40.4]} 8. Qd2 {[%clk
0:02:20.6]} 8... Bd7 {[%clk 0:02:38.7]} 9. O-O-O {[%clk 0:02:16.9]} 9... a6
{[%clk 0:02:38.1]} 10. g4 {[%clk 0:02:15.1]} 10... b5 {[%clk 0:02:11.6]} 11. g5
{[%clk 0:01:59.3]} 11... Nh5 {[%clk 0:02:10]} 12. h4 {[%clk 0:01:45.2]} 12...
Rc8 {[%clk 0:02:04.9]} 13. Bh3 {[%clk 0:00:50.4]} 13... Bxh3 {[%clk 0:01:58.2]}
14. Rxh3 {[%clk 0:00:51.3]} 14... Ne5 {[%clk 0:01:58.1]} 15. f4 {[%clk
0:00:38.1]} 15... Nc4 {[%clk 0:01:56.9]} 16. Qf2 {[%clk 0:00:36.8]} 16... Qa5
{[%clk 0:01:49.2]} 17. Rd3 {[%clk 0:00:19.9]} 17... b4 {[%clk 0:01:48]} 18. Nd5
{[%clk 0:00:16.2]} 18... Qxa2 {[%clk 0:01:45.4]} 19. Nb3 {[%clk 0:00:03.9]}
19... Qxb2+ {[%clk 0:01:43.3]} 20. Kd1 {[%clk 0:00:04.4]} 20... Qb1+ {[%clk
0:01:37]} 21. Nc1 {[%clk 0:00:04.2]} 21... Nb2+ {[%clk 0:01:33.9]} 22. Ke2
{[%clk 0:00:00.8]} 22... Nxd3 {[%clk 0:01:18.1]} 23. cxd3 {[%clk 0:00:01.7]}
23... Rc2+ {[%clk 0:01:16.5]} 24. Bd2 {[%clk 0:00:01]} 24... Qxc1 {[%clk
0:01:13.1]} 25. Qe3 {[%clk 0:00:01]} 25... Bc3 {[%clk 0:01:05.5]} 26. Nxc3
{[%clk 0:00:00.8]} 26... bxc3 {[%clk 0:01:00.1]} 0-1

[Event "Early-Titled-Tuesday-Blitz-May-28-2024"]
[Site "Chess.com"]
[Date "2024.05.28"]
[Round "9"]
[White "Mesa_1"]
[Black "GM_Huschenbeth"]
[Result "0-1"]
[WhiteElo "2571"]
[BlackElo "2503"]
[TimeControl "180+1"]
[EndTime "9:46:01 PDT"]
[Termination "GM_Huschenbeth won by resignation"]

1. e4 {[%clk 0:03:00.9]} 1... c5 {[%clk 0:02:58.1]} 2. Nf3 {[%clk 0:03:01.1]}
2... d6 {[%clk 0:02:58.2]} 3. d4 {[%clk 0:03:01.3]} 3... cxd4 {[%clk 0:02:59.1]}
4. Nxd4 {[%clk 0:03:01.8]} 4... Nf6 {[%clk 0:02:59.8]} 5. Nc3 {[%clk 0:03:02.1]}
5... a6 {[%clk 0:03:00.1]} 6. Bg5 {[%clk 0:02:56.8]} 6... Nbd7 {[%clk
0:02:56.3]} 7. Bc4 {[%clk 0:02:54.3]} 7... Qb6 {[%clk 0:02:55.4]} 8. Bb3 {[%clk
0:02:54.7]} 8... e6 {[%clk 0:02:54.8]} 9. Bxf6 {[%clk 0:02:55.3]} 9... Nxf6
{[%clk 0:02:55]} 10. Qd2 {[%clk 0:02:55.9]} 10... Nd7 {[%clk 0:02:55.5]} 11.
O-O-O {[%clk 0:02:47.5]} 11... Nc5 {[%clk 0:02:55.8]} 12. f4 {[%clk 0:02:47.7]}
12... Bd7 {[%clk 0:02:52.2]} 13. g4 {[%clk 0:02:38.7]} 13... O-O-O {[%clk
0:02:50]} 14. g5 {[%clk 0:02:36.2]} 14... Kb8 {[%clk 0:02:38.2]} 15. Rhf1 {[%clk
0:02:25.7]} 15... h6 {[%clk 0:02:31.3]} 16. h4 {[%clk 0:02:17.2]} 16... Rc8
{[%clk 0:02:20.2]} 17. Kb1 {[%clk 0:02:14.6]} 17... hxg5 {[%clk 0:02:14.2]} 18.
hxg5 {[%clk 0:02:13.7]} 18... Rh3 {[%clk 0:02:12.9]} 19. Nde2 {[%clk 0:02:06.5]}
19... Bc6 {[%clk 0:02:01.5]} 20. Qd4 {[%clk 0:02:04.2]} 20... Qc7 {[%clk
0:01:51.2]} 21. e5 {[%clk 0:01:30.1]} 21... dxe5 {[%clk 0:01:28.9]} 22. fxe5
{[%clk 0:01:24.6]} 22... Rf3 {[%clk 0:01:00.3]} 23. Rxf3 {[%clk 0:01:09.3]}
23... Bxf3 {[%clk 0:01:01.2]} 24. Qf2 {[%clk 0:00:48.9]} 24... Bh5 {[%clk
0:00:47.1]} 25. Qh2 {[%clk 0:00:36]} 25... Bg6 {[%clk 0:00:40.5]} 26. Qf4 {[%clk
0:00:20.3]} 26... b5 {[%clk 0:00:34.4]} 27. a3 {[%clk 0:00:20.2]} 27... Nxb3
{[%clk 0:00:32.3]} 0-1

[Event "Early-Titled-Tuesday-Blitz-May-28-2024"]
[Site "Chess.com"]
[Date "2024.05.28"]
[Round "9"]
[White "CristianS27"]
[Black "Goryachkina"]
[Result "1-0"]
[WhiteElo "2549"]
[BlackElo "2677"]
[TimeControl "180+1"]
[EndTime "9:46:04 PDT"]
[Termination "CristianS27 won by resignation"]

1. e4 {[%clk 0:03:00.9]} 1... c5 {[%clk 0:02:59.6]} 2. Nf3 {[%clk 0:02:57.1]}
2... Nc6 {[%clk 0:02:59.4]} 3. d4 {[%clk 0:02:56.1]} 3... cxd4 {[%clk
0:02:58.9]} 4. Nxd4 {[%clk 0:02:57]} 4... e6 {[%clk 0:02:58]} 5. Nc3 {[%clk
0:02:56.8]} 5... Bc5 {[%clk 0:02:57.5]} 6. Nxc6 {[%clk 0:02:55.4]} 6... bxc6
{[%clk 0:02:56.5]} 7. Bd3 {[%clk 0:02:54.3]} 7... d5 {[%clk 0:02:53.1]} 8. O-O
{[%clk 0:02:53.6]} 8... Ne7 {[%clk 0:02:48.7]} 9. b3 {[%clk 0:02:47.3]} 9... O-O
{[%clk 0:02:43.5]} 10. Bb2 {[%clk 0:02:47.8]} 10... Ng6 {[%clk 0:02:37.6]} 11.
Na4 {[%clk 0:02:43.4]} 11... Bd6 {[%clk 0:02:27.4]} 12. exd5 {[%clk 0:02:35.8]}
12... exd5 {[%clk 0:02:18.6]} 13. Qh5 {[%clk 0:02:34.2]} 13... Qc7 {[%clk
0:02:01.8]} 14. Rfe1 {[%clk 0:02:30.4]} 14... h6 {[%clk 0:01:53]} 15. g3 {[%clk
0:02:02]} 15... Bd7 {[%clk 0:01:38.9]} 16. c4 {[%clk 0:01:35.6]} 16... Rad8
{[%clk 0:01:28]} 17. c5 {[%clk 0:01:08.4]} 17... Be7 {[%clk 0:01:16.5]} 18. Bxg6
{[%clk 0:01:00.6]} 18... fxg6 {[%clk 0:01:07.5]} 19. Rxe7 {[%clk 0:00:59.8]}
19... Rf7 {[%clk 0:01:01.7]} 20. Qe5 {[%clk 0:00:24.7]} 20... Qxe5 {[%clk
0:01:01.3]} 21. Rxe5 {[%clk 0:00:24.2]} 21... Bh3 {[%clk 0:01:01.3]} 22. Rae1
{[%clk 0:00:23.5]} 22... g5 {[%clk 0:00:58.5]} 23. Bd4 {[%clk 0:00:17.7]} 23...
Rdd7 {[%clk 0:00:55.5]} 24. Nb2 {[%clk 0:00:16.6]} 24... a5 {[%clk 0:00:49.7]}
25. Nd3 {[%clk 0:00:16.6]} 25... Rf3 {[%clk 0:00:48.8]} 26. R1e3 {[%clk
0:00:14.4]} 26... Rff7 {[%clk 0:00:48.5]} 27. Re8+ {[%clk 0:00:13.6]} 27... Kh7
{[%clk 0:00:48.4]} 28. Ne5 {[%clk 0:00:13.5]} 1-0